fUSD/lending_fUSD_20240717
["ID","MTS","AMOUNT","RATE_DAILY","PERIOD"]
[332478951,1721229038872,-2470.44223397,0.00014489,2]
[332478952,1721229038882,-193.81586001,0.00014499,2]
[332478953,1721229038891,-155.07865353,0.00014499,2]
[332478954,1721229038900,-270.04451992,0.00014499,2]
[332478955,1721229038909,-8437.86385551,0.000145,2]
[332478956,1721229038925,-220.32,0.00014528,2]
[332478957,1721229038934,-4940.88446794,0.00014595,2]
[332478958,1721229038944,-200.0,0.00014656,2]
[332478959,1721229038954,-394.27,0.00014688,2]
[332478960,1721229038964,-552.0,0.00014698,2]
[332478961,1721229038975,-155.0,0.00014849,2]
[332478962,1721229038985,-703.0,0.0001485,2]
[332478963,1721229038997,-155.0,0.00014899,2]
[332478964,1721229039007,-176.39537564,0.00014899,2]
[332478965,1721229039016,-176.39537564,0.00014899,2]
[332478966,1721229039030,-298.16668316,0.00014966,2]
[332478967,1721229039040,-600.0,0.00015,2]
[332478968,1721229039050,-612.76,0.00015068,2]
[332478969,1721229039060,-2470.44223397,0.0001509,2]
[332478970,1721229039069,-1910.0,0.000151,2]
[332478971,1721229039080,-588.66104526,0.00015121,2]
[332478972,1721229039089,-1453.51017599,0.00015121,2]
[332478973,1721229039099,-190.59,0.00015386,2]
[332478974,1721229039108,-394.27,0.00015422,2]
[332478976,1721229039117,-1771.26641388,0.00015471,2]
[332478977,1721229039127,-472.74,0.00015564,2]
[332478978,1721229039136,-173.48,0.00015738,2]
[332478979,1721229039145,-612.76,0.00015753,2]
[332478980,1721229039154,-1392.445814,0.00016,2]
[332478981,1721229039164,-303.64163011,0.00016099,2]
[332478982,1721229039173,-220.32,0.00016142,2]
[332478983,1721229039184,-394.27,0.00016157,2]
[332478984,1721229039193,-2470.44223397,0.00016312,2]
[332478985,1721229039203,-4940.88446794,0.00016323,2]
[332478986,1721229039213,-150.0,0.00016331,2]
[332478987,1721229039223,-552.0,0.00016331,2]
[332478988,1721229039232,-32731.0,0.00016333,2]
[332478989,1721229039242,-588.66104526,0.00016344,2]
[332478990,1721229039252,-1453.51017599,0.00016344,2]
[332478991,1721229039262,-856.59,0.00016375,2]
[332478992,1721229039271,-612.76,0.00016438,2]
[332478993,1721229039285,-200.0,0.00016489,2]
[332478994,1721229039294,-500.0,0.0001678,2]
[332478995,1721229039303,-500.0,0.0001678,2]
[332478996,1721229039313,-500.0,0.0001678,2]
[332478997,1721229039322,-394.27,0.00016891,2]
[332478998,1721229039331,-650.0,0.00017,2]
[332478999,1721229039341,-1771.26641388,0.00017042,2]
[332479000,1721229039351,-227.39291056,0.00017159,2]
[332479001,1721229039361,-2498.02656989,0.00017199,2]
[332479002,1721229039371,-158.81820275,0.00017199,2]
[332479003,1721229039381,-7411.32670191,0.00017223,2]
[332479004,1721229039391,-150.0,0.00017233,2]
[332479005,1721229039401,-1992.0,0.00017233,2]
[332479006,1721229039411,-3280.0,0.00017233,2]
[332479007,1721229039420,-173.48,0.00017248,2]
[332479008,1721229039431,-1201.0,0.0001725,2]
[332479009,1721229039440,-38315.0,0.0001725,2]
[332479010,1721229039450,-5822.0,0.0001725,2]
[332479011,1721229039459,-5250.0,0.0001725,2]
[332479012,1721229039468,-1667.0,0.0001725,2]
[332479013,1721229039477,-158.6680041,0.0001742,2]
[332479014,1721229039487,-158.16745913,0.0001746,2]
[332479015,1721229039496,-200.0,0.0001746,2]
[332479016,1721229039506,-198.20985388,0.0001746,2]
[332479017,1721229039515,-158.72805267,0.0001746,2]
[332479018,1721229039529,-155.16379513,0.0001746,2]
[332479019,1721229039539,-158.16747413,0.0001746,2]
[332479020,1721229039548,-588.66104526,0.00017566,2]
[332479021,1721229039558,-1453.51017599,0.00017566,2]
[332479022,1721229039567,-394.27,0.00017625,2]
[332479023,1721229039576,-220.32,0.00017756,2]
[332479024,1721229039587,-472.74,0.00017828,2]
[332479025,1721229039596,-500.0,0.00017876,2]
[332479026,1721229039605,-500.0,0.00017876,2]
[332479027,1721229039615,-500.0,0.00017876,2]
[332479028,1721229039624,-714.51605873,0.00017913,2]
[332479029,1721229039635,-2470.44223397,0.00017919,2]
[332479030,1721229039645,-9174.75388688,0.00017939,2]
[332479031,1721229039654,-1100.0,0.00017939,2]
[332479032,1721229039663,-552.0,0.00017964,2]
[332479033,1721229039674,-2470.44223397,0.00017993,2]
[332479034,1721229039683,-150.501,0.00018,2]
[332479035,1721229039693,-200.0,0.00018,2]
[332479036,1721229039702,-2470.44223397,0.00018003,2]
[332479037,1721229039712,-1252.0,0.00018013,2]
[332479038,1721229039721,-361.0,0.00018013,2]
[332479039,1721229039730,-1661.0,0.00018013,2]
[332479040,1721229039739,-1829.0,0.00018013,2]
[332479041,1721229039749,-450.0,0.00018013,2]
[332479042,1721229039758,-620.0,0.00018013,2]
[332479043,1721229039767,-445.0,0.00018013,2]
[332479044,1721229039781,-809.0,0.00018013,2]
[332479045,1721229039791,-549.0,0.00018013,2]
[332479046,1721229039800,-2380.0,0.00018013,2]
[332479047,1721229039809,-150.0,0.0001802,2]
[332479048,1721229039818,-150.0,0.0001802,2]
[332479049,1721229039829,-150.0,0.0001802,2]
[332479050,1721229039839,-303.64163011,0.00018299,2]
[332479051,1721229039848,-200.0,0.00018321,2]
[332479052,1721229039857,-600.0,0.00018424,2]
[332479053,1721229039867,-800.0,0.00018424,2]
[332479054,1721229039877,-800.0,0.00018424,2]
[332479055,1721229039886,-150.62825954,0.00018429,2]
[332479056,1721229039896,-800.0,0.000185,6]
[332479057,1721229039906,-2470.44223397,0.0001859,2]
[332479058,1721229039916,-1200.0,0.000186,6]
[332479059,1721229039931,-1771.26641388,0.00018614,2]
[332479060,1721229039941,-1141.64646167,0.0001862,2]
[332479061,1721229039950,-224.71819004,0.00018656,2]
[332479062,1721229039960,-1600.0,0.000187,6]
[332479063,1721229039970,-588.66104526,0.00018788,2]
[332479064,1721229039980,-1453.51017599,0.00018788,2]
[332479065,1721229039990,-4940.88446794,0.00018795,2]
[332479066,1721229040001,-2000.0,0.000188,6]
[332479067,1721229040011,-3523.3771,0.00018805,2]
[332479068,1721229040020,-19989.9634,0.00018805,2]
[332479069,1721229040032,-160.13713916,0.00018805,2]
[332479070,1721229040042,-500.0,0.00018847,2]
[332479071,1721229040051,-500.0,0.00018847,2]
[332479072,1721229040061,-500.0,0.00018848,2]
[332479073,1721229040070,-200.0,0.00018848,2]
[332479074,1721229040079,-282.95,0.00018849,30]
[332479075,1721229040090,-2470.44223397,0.00018878,2]
[332479076,1721229040099,-12000.000001,0.00018888,10]
[332479077,1721229040108,-2470.44223397,0.0001889,2]
[332479078,1721229040118,-1000.0,0.000189,2]
[332479079,1721229040127,-5000.0,0.000189,2]
[332479080,1721229040136,-400.0,0.000189,6]
[332479081,1721229040146,-2006.97643008,0.000189,2]
[332479082,1721229040155,-4403.03624254,0.000189,2]
[332479083,1721229040164,-1000.0,0.00018905,2]
[332479084,1721229040174,-1000.0,0.00018905,2]
[332479085,1721229040183,-1000.0,0.00018905,2]
[332479086,1721229040192,-1000.0,0.00018905,2]
[332479087,1721229040201,-1000.0,0.00018905,2]
[332479088,1721229040210,-1000.0,0.00018905,2]
[332479089,1721229040219,-1000.0,0.00018905,2]
[332479090,1721229040228,-1000.0,0.00018905,2]
[332479091,1721229040237,-1000.0,0.00018905,2]
[332479092,1721229040246,-1000.0,0.00018905,2]
[332479093,1721229040255,-2470.44223397,0.00018967,2]
[332479094,1721229040266,-2470.44223397,0.0001897,2]
[332479095,1721229040278,-500.0,0.00018972,2]
[332479096,1721229040287,-500.0,0.00018972,2]
[332479097,1721229040296,-500.0,0.00018972,2]
[332479098,1721229040305,-800.0,0.00018972,2]
[332479099,1721229040315,-800.0,0.00018972,2]
[332479100,1721229040323,-2470.44223397,0.00018977,2]
[332479101,1721229040333,-12352.2111698,0.0001898,2]
[332479102,1721229040343,-103278.834263,0.00018987,2]
[332479103,1721229040353,-17569.7754813,0.00018987,2]
[332479104,1721229040362,-1000.0,0.00018989,2]
[332479105,1721229040372,-10289.86893707,0.0001899,2]
[332479106,1721229040414,-120334.29941382,0.0001899,2]
[332479107,1721229040426,-1214.80253227,0.0001899,2]
[332479108,1721229040439,-11399.002464,0.0001899,2]
[332479109,1721229040451,-1185.34288774,0.0001899,2]
[332479110,1721229040466,-858.74623956,0.0001899,2]
[332479111,1721229040509,-1322.90276768,0.00014966,2]
[332479112,1721229040519,-104717.93752554,0.0001899,2]
[332479113,1721229040529,-1247.0,0.0001899,2]
[332479114,1721229040539,-2383.0,0.0001899,2]
[332479115,1721229040548,-10333.594453,0.00018998,2]
[332479116,1721229040558,-15500.39168,0.00018998,2]
[332479117,1721229040567,-20667.188907,0.00018998,2]
[332479118,1721229040577,-22300.54613334,0.00018998,2]
[332479119,1721229040588,-2256.33146258,0.00018998,2]
[332479120,1721229040599,-1235.33822049,0.00018998,2]
[332479121,1721229040611,-41.77031659,0.00018998,2]
[332479122,1721229040620,-1263.53162593,0.00018998,2]
[332479123,1721229040631,-3012.05874852,0.00018998,2]
[332479124,1721229040646,-464.64,0.00018998,2]
[332479125,1721229040660,-31427.35021255,0.00018998,2]
[332479126,1721229040669,-28413.85771992,0.00018998,2]
[332479127,1721229040680,-382.60523184,0.00018998,2]
[332479147,1721229042106,266.7900354,0.00024,60]
[332479166,1721229043046,-2829.58704795,0.00018998,2]
[332479167,1721229043106,-632.94580132,0.00018998,2]
[332479168,1721229043169,-9075.38201297,0.00018998,2]
[332479169,1721229043179,-209.87546738,0.00018999,2]
[332479170,1721229043188,-2319.72166195,0.00018999,2]
[332479171,1721229043197,-254542.88016563,0.00019,7]
[332479172,1721229043208,-682.61001244,0.00019,7]
[332479173,1721229043219,-4135.607814,0.00019,7]
[332479174,1721229043230,-758.19771398,0.00019,7]
[332479175,1721229043241,-275.452,0.00019,7]
[332479176,1721229043251,-361871.6202388,0.00019,7]
[332479177,1721229043263,-202934.43531936,0.00019,7]
[332479178,1721229043272,-794986.18691579,0.00019,2]
[332479179,1721229043285,-5658.86,0.00019,2]
[332479180,1721229043296,-1913.60066779,0.00019,2]
[332479181,1721229043314,-242.77519857,0.00014099,2]
[332479182,1721229043323,-5715.23219443,0.00019,2]
[332479183,1721229043334,-1267.53629767,0.00019,2]
[332479184,1721229043379,-498.09121075,0.00019,2]
[332479185,1721229044089,-457.46219434,0.00019,2]
[332479186,1721229044101,-298.72,0.00019,2]
[332479187,1721229044113,-1662.404714,0.00019,2]
[332479188,1721229044124,-571.48088153,0.00019,2]
[332479189,1721229044136,-500.0,0.00019,2]
[332479202,1721229046171,-536.814937,0.0001725,2]
[332479203,1721229046183,-535.185063,0.0001725,2]
[332479204,1721229046192,-1022890.54485027,0.00019,2]
[332479205,1721229046376,-384337.60351741,0.00019,2]
[332479207,1721229104856,1892.615,0.00011099,2]
[332479209,1721229241165,4467.02483465,0.00011098,2]
[332479210,1721229257406,9136.76595655,0.00011097,2]
[332479211,1721229274587,6234.64847857,0.00011098,2]
[332479212,1721229286950,-2740.42496403,0.00011196,2]
[332479213,1721229286973,-15451.9318012,0.00011199,2]
[332479214,1721229286997,-35627.7231892,0.00011199,2]
[332479215,1721229287023,-24745.28176521,0.00011199,2]
[332479216,1721229287047,-11005.33966224,0.00011199,2]
[332479217,1721229287070,-3077.57558188,0.00011199,2]
[332479218,1721229287093,-3114.29046017,0.00011199,2]
[332479219,1721229287114,-3476.86957607,0.00011199,2]
[332479220,1721229291296,-7053.49440001,0.00011199,2]
[332479221,1721229304623,1051.02158597,0.00011199,2]
[332479222,1721229314413,1895.48401402,0.00011199,2]
[332479223,1721229314435,10000.0,0.00011199,2]
[332479225,1721229345671,-4235.09598598,0.00011199,2]
[332479226,1721229345695,-524.71389889,0.00011199,2]
[332479227,1721229347828,1136.94020699,0.00011199,2]
[332479228,1721229363890,533.66826194,0.00011199,2]
[332479229,1721229367660,276.15184313,0.00011199,2]
[332479230,1721229369843,174.2851925,0.00011143,2]
[332479231,1721229380429,296.58726681,0.00011199,2]
[332479232,1721229394902,319.18107299,0.00011199,2]
[332479233,1721229401762,816.02832938,0.00011199,2]
[332479234,1721229408681,1687.34794139,0.00011199,2]
[332479235,1721229426425,319.07295113,0.00011099,2]
[332479236,1721229469654,41152.79055819,0.00011099,2]
[332479237,1721229472485,796.79710196,0.00011099,2]
[332479238,1721229479764,155.42086569,0.00011099,2]
[332479239,1721229489541,412.7481654,0.00011099,2]
[332479240,1721229509492,339.33772615,0.00011098,2]
[332479241,1721229526583,235.82956703,0.00011098,2]
[332479242,1721229536162,648.63425589,0.00011098,2]
[332479244,1721229546387,484.23503165,0.00011098,2]
[332479245,1721229550196,155.0,0.00011098,2]
[332479246,1721229551464,5939.41807996,0.00011098,2]
[332479247,1721229556158,311.63770253,0.00011098,2]
[332479248,1721229557486,8367.66863358,0.00011097,2]
[332479249,1721229563421,617.04418814,0.00011098,2]
[332479250,1721229570032,346.8198691,0.00011098,2]
[332479251,1721229574216,835.31025714,0.00011098,2]
[332479252,1721229575149,155.0,0.00011098,2]
[332479253,1721229576550,476.18329464,0.00011098,2]
[332479254,1721229577241,155.9907907,0.00011098,2]
[332479255,1721229579250,155.0,0.00011098,2]
[332479256,1721229580496,796.42759146,0.00011099,2]
[332479257,1721229582889,262.87331183,0.00011098,2]
[332479258,1721229586271,3671.17601863,0.00011098,2]
[332479259,1721229587924,254.48154078,0.00011098,2]
[332479260,1721229588314,158.81820275,0.00011098,2]
[332479261,1721229589980,228.01950049,0.00011098,2]
[332479262,1721229595723,155.0,0.00011098,2]
[332479263,1721229603039,266.29678006,0.00011098,2]
[332479264,1721229606354,624.40925396,0.00011098,2]
[332479265,1721229611413,366.86499143,0.00011098,2]
[332479266,1721229612515,218.0,0.00011098,2]
[332479267,1721229613030,155.0,0.00011098,2]
[332479268,1721229613610,297.80277051,0.00011098,2]
[332479269,1721229625551,155.0,0.00011098,2]
[332479270,1721229639700,310.0,0.00011098,2]
[332479271,1721229643028,155.0,0.00011098,2]
[332479272,1721229668146,159.28807435,0.00011098,2]
[332479273,1721229670476,216.09963831,0.00011098,2]
[332479275,1721229683170,2615.81833308,0.00011098,2]
[332479277,1721229699344,227.39291056,0.00011098,2]
[332479278,1721229739681,1445.01761992,0.00011098,2]
[332479279,1721229742436,1015.14338774,0.00011098,2]
[332479280,1721229743482,8367.66863358,0.00011097,2]
[332479282,1721229839177,645.23996413,0.00011098,2]
[332479283,1721229852482,245.34579053,0.00011098,2]
[332479284,1721229860233,846.9968626,0.00011098,2]
[332479285,1721229862868,322.53490955,0.00011098,2]
[332479286,1721229866261,308.74270551,0.00011098,2]
[332479287,1721229868948,155.11912756,0.00011098,2]
[332479288,1721229868987,155.57739882,0.00011098,2]
[332479289,1721229870727,163.18903781,0.00011098,2]
[332479290,1721229876265,155.0,0.00011098,2]
[332479291,1721229886933,155.30311994,0.00011098,2]
[332479292,1721229890335,413.56774832,0.00011098,2]
[332479293,1721229893842,370.00600628,0.00011098,2]
[332479294,1721229901294,155.80827537,0.00011098,2]
[332479295,1721229903200,155.82064845,0.00011098,2]
[332479296,1721229915858,358.92663955,0.00011098,2]
[332479297,1721229936795,478.40863638,0.00011,2]
[332479298,1721229944704,425.31225462,0.00011098,2]
[332479299,1721229944769,266.62300389,0.00011098,2]
[332479300,1721229955595,617.04418814,0.00011098,2]
[332479301,1721229956068,196.9335443,0.00011098,2]
[332479302,1721229957495,8367.66863358,0.00011097,2]
[332479304,1721229995664,227.73586974,0.00011098,2]
[332479307,1721230019030,322.27008094,0.00011098,2]
[332479311,1721230089811,155.0,0.00011098,2]
[332479312,1721230091562,1000.0,0.00025,120]
[332479314,1721230100783,225.58593333,0.00011098,2]
[332479322,1721230164502,8367.66863358,0.00011097,2]
[332479339,1721230235263,-410.92439697,0.00011197,2]
[332479340,1721230235273,-300.0,0.00011198,2]
[332479341,1721230235283,-5935.61157077,0.00011199,2]
[332479342,1721230235294,-11856.8112775,0.00011199,2]
[332479343,1721230235306,-5095.32228838,0.00011199,2]
[332479344,1721230235315,-471.07,0.00011995,2]
[332479345,1721230235325,-420.0,0.00012303,2]
[332479346,1721230235339,-617.04418814,0.00012314,2]
[332479347,1721230235348,-550.0,0.00013,2]
[332479348,1721230235357,-208.93331,0.00013128,2]
[332479349,1721230235367,-155.0,0.00013128,2]
[332479350,1721230235377,-8328.75939002,0.00013451,2]
[332479351,1721230235386,-587.0,0.00013517,2]
[332479352,1721230235395,-11393.57739555,0.00013584,2]
[332479353,1721230235407,-469.02406266,0.00013584,2]
[332479354,1721230235421,-5854.9058077,0.00013584,2]
[332479355,1721230235433,-72671.49273409,0.00013584,2]
[332479356,1721230235442,-5136.9101,0.00013899,2]
[332479357,1721230235452,-374.21762814,0.00013947,2]
[332479358,1721230235461,-157.44730638,0.00013947,2]
[332479359,1721230235471,-1337.98428672,0.00013947,2]
[332479360,1721230235480,-500.0,0.00013999,2]
[332479361,1721230235490,-187.13781742,0.00013999,2]
[332479362,1721230235500,-307.77605098,0.00013999,2]
[332479363,1721230235509,-150.0,0.00013999,2]
[332479364,1721230235519,-736475.66904761,0.00014,2]
[332479365,1721230235530,-640.72236204,0.00014,2]
[332479366,1721230235542,-565566.51070712,0.00014,2]
[332479367,1721230235553,-4591.446,0.00014,2]
[332479369,1721230235564,-938.21279485,0.00014,2]
[332479374,1721230235782,-90.00002777,0.00014,2]
[332479375,1721230235794,-925.07724057,0.00014,2]
[332479394,1721230238204,-190.85369923,0.00013947,2]
[332479397,1721230238214,-46137.19328364,0.00014,2]
[332479400,1721230238226,-539.00383144,0.00014,2]
[332479403,1721230238237,-15524.9999999,0.00014,2]
[332479406,1721230238263,-118130.37484465,0.00014,2]
[332479408,1721230238275,-70186.91629342,0.00014,2]
[332479409,1721230238287,-553.16,0.00014,2]
[332479410,1721230238298,-1051.02158597,0.00014,2]
[332479411,1721230238328,-1763.0065235,0.00014,2]
[332479412,1721230238494,-5533.35431226,0.00014,2]
[332479413,1721230238506,-1146.39789354,0.00014,2]
[332479422,1721230240310,-256.60766048,0.00014,2]
[332479425,1721230240321,-3258.36262587,0.00014,2]
[332479427,1721230240335,-1034.268095,0.00014,2]
[332479431,1721230240364,-3468.4,0.00014,2]
[332479435,1721230240417,-232602.74631619,0.00014,2]
[332479436,1721230240428,-1129.10829927,0.00014,2]
[332479437,1721230240464,-9547.7392,0.00014,2]
[332479438,1721230240478,-470.89476816,0.00014,2]
[332479439,1721230240489,-1681.61616314,0.00014,2]
[332479440,1721230240500,-726119.60450583,0.00014,2]
[332479441,1721230240511,-775.1703946,0.00014,2]
[332479442,1721230240522,-463.62,0.00014,2]
[332479443,1721230240667,-975.50742252,0.00014,2]
[332479444,1721230240679,-807.664508,0.00014,2]
[332479445,1721230240723,-88121.07698023,0.00014,2]
[332479446,1721230240734,-1484.38277923,0.00014,2]
[332479447,1721230240746,-1606.34289988,0.00014,2]
[332479448,1721230240778,-4737.26219031,0.00014,2]
[332479449,1721230240829,-380.59,0.00014,2]
[332479597,1721230243467,-544476.46065227,0.00014,2]
[332479611,1721230244036,-808.40499999,0.00014,2]
[332479612,1721230244048,-6973.38564092,0.00014,2]
[332479613,1721230244060,-96297.69089796,0.00014,2]
[332479614,1721230244080,-2140.46025163,0.00014,2]
[332479615,1721230244091,-13204.79817622,0.00014,2]
[332479617,1721230244103,-373.5132,0.00014,2]
[332479618,1721230244114,-699.72,0.00014,2]
[332479627,1721230246349,-280207.76822092,0.00014,2]
[332479628,1721230246361,-564.299,0.00014,2]
[332479629,1721230246372,-818.55008395,0.00014,2]
[332479630,1721230246421,-496.45711752,0.00014,2]
[332479631,1721230246433,-28600.0,0.00014,2]
[332479632,1721230246446,-295.21458624,0.00014,2]
[332479633,1721230246483,-1158.3,0.00014,2]
[332479634,1721230246496,-9931.27538947,0.00014,2]
[332479635,1721230246508,-7233.48028,0.00014,2]
[332479636,1721230246520,-1498.69852761,0.00014,2]
[332479637,1721230246532,-6333.50000001,0.00014,2]
[332479638,1721230246544,-274.68725396,0.00014,2]
[332479639,1721230246556,-4868.03674237,0.00014,2]
[332479642,1721230440553,6180.86678507,0.00011098,2]
[332479643,1721230452404,5607.32059616,0.00011098,2]
[332479644,1721230464912,3077.57558188,0.00011098,2]
[332479645,1721230470194,196.70507819,0.00011098,2]
[332479646,1721230478509,2381.42864796,0.00011098,2]
[332479647,1721230479481,2835.14404974,0.00011098,2]
[332479648,1721230484140,2741.50570548,0.00011098,2]
[332479650,1721230494642,2741.50570548,0.00011098,2]
[332479651,1721230507569,648.23322978,0.00011098,2]
[332479652,1721230515221,2593.60885507,0.00011098,2]
[332479653,1721230518731,1254.63523304,0.00011098,2]
[332479654,1721230532819,1500.0,0.00011098,2]
[332479655,1721230538386,1136.70475368,0.00011098,2]
[332479656,1721230538461,1272.77007112,0.00011098,2]
[332479657,1721230581820,492.55741441,0.00011098,2]
[332479658,1721230591116,625.98270512,0.00011098,2]
[332479659,1721230614899,193.76221892,0.00011098,2]
[332479660,1721230615738,266.67996782,0.00011098,2]
[332479661,1721230617155,155.0,0.00011098,2]
[332479662,1721230623219,211.43777772,0.00011098,2]
[332479663,1721230632518,335.38336005,0.00011098,2]
[332479664,1721230635401,155.35101932,0.00011098,2]
[332479665,1721230636311,155.0,0.00011098,2]
[332479666,1721230636930,155.0,0.00011098,2]
[332479667,1721230638222,156.40207364,0.00011098,2]
[332479668,1721230638742,155.92115813,0.00011098,2]
[332479669,1721230639766,163.84092695,0.00011098,2]
[332479670,1721230640577,356.60665527,0.00011098,2]
[332479671,1721230642077,166.33369448,0.00011098,2]
[332479672,1721230655706,203.41769491,0.00011098,2]
[332479673,1721230655757,215.87645086,0.00011098,2]
[332479674,1721230662787,164.02052985,0.00011098,2]
[332479675,1721230665987,436.0661831,0.00011098,2]
[332479676,1721230670110,298.10716168,0.00011098,2]
[332479677,1721230680238,155.0,0.00011098,2]
[332479678,1721230702014,168.98040525,0.00011098,2]
[332479679,1721230736530,1422.8636011,0.00011098,2]
[332479680,1721230752382,367.07162065,0.00011098,2]
[332479682,1721230783220,900.0,0.0001078,2]
[332479683,1721230820837,500.0,0.0001078,2]
[332479684,1721230823627,500.0,0.0001078,2]
[332479685,1721230831666,2739.87599838,0.00011098,2]
[332479686,1721230839100,210.40265388,0.00011098,2]
[332479688,1721230909990,155.0,0.00011098,2]
[332479689,1721230928285,718.74309008,0.00011098,2]
[332479705,1721231432598,-155.0,0.00011115,2]
[332479706,1721231432608,-492.56,0.00011116,2]
[332479707,1721231432618,-156.31937905,0.00011177,2]
[332479708,1721231432629,-150.0,0.00011178,2]
[332479709,1721231432638,-1985.09767323,0.00011196,2]
[332479710,1721231432648,-150.0,0.00011198,2]
[332479712,1721231432658,-19649.39918542,0.00011198,2]
[332479714,1721231432668,-6219.77176229,0.00011199,2]
[332479725,1721231438319,-4052.72401042,0.00011199,2]
[332479726,1721231438333,-732.84388953,0.00011199,2]
[332479727,1721231438342,-151.43949472,0.00011199,2]
[332479728,1721231438427,-1220.15595404,0.00011199,2]
[332479729,1721231438439,-3180.7408274,0.00011199,2]
[332479730,1721231438450,-1272.79999976,0.00011199,2]
[332479731,1721231438463,-4705.22770016,0.00011199,2]
[332479732,1721231438477,-10472.57032937,0.00011199,2]
[332479733,1721231438489,-985.11407562,0.00011199,2]
[332479741,1721231439135,-3994.24739621,0.00011199,2]
[332479742,1721231439145,-15153.37652187,0.00011199,2]
[332479743,1721231439155,-155.0,0.00011199,2]
[332479744,1721231439165,-900.0,0.00011602,2]
[332479745,1721231439175,-152.72,0.00011981,2]
[332479746,1721231439185,-1000.0,0.00011981,2]
[332479747,1721231439194,-900.0,0.00012424,2]
[332479748,1721231439203,-500.0,0.00012424,2]
[332479749,1721231439214,-500.0,0.00012424,2]
[332479750,1721231439226,-952.2,0.0001243,2]
[332479751,1721231439236,-250.0,0.00012473,2]
[332479752,1721231439245,-1237.4,0.0001254,2]
[332479753,1721231439255,-425.98,0.00012809,2]
[332479754,1721231439264,-250.0,0.00012809,2]
[332479755,1721231439273,-5191.49572098,0.00012867,2]
[332479756,1721231439285,-569.78816292,0.00012867,2]
[332479757,1721231439296,-653.67901261,0.00012867,2]
[332479758,1721231439312,-3735.53908701,0.00012867,2]
[332479759,1721231439323,-1894.96154671,0.00012867,2]
[332479760,1721231439334,-816.07128584,0.00012867,2]
[332479761,1721231439345,-362.45209,0.00012867,2]
[332479762,1721231439357,-10676.01309393,0.00012867,2]
[332479763,1721231439366,-900.0,0.00012895,2]
[332479764,1721231439375,-550.0,0.00013,2]
[332479765,1721231439384,-900.0,0.00013246,2]
[332479766,1721231439394,-160.0513,0.00013351,2]
[332479767,1721231439403,-492.56,0.0001338,2]
[332479768,1721231439413,-1000.0,0.00013479,2]
[332479769,1721231439423,-445.72,0.00013699,2]
[332479770,1721231439432,-250.0,0.00013699,2]
[332479771,1721231439442,-336.64,0.00013699,2]
[332479772,1721231439451,-900.0,0.00013717,2]
[332479773,1721231439461,-629.7,0.000139,2]
[332479774,1721231439472,-2233.21503504,0.000139,2]
[332479775,1721231439484,-304.17541431,0.000139,2]
[332479776,1721231439496,-1603.2000001,0.000139,2]
[332479777,1721231439508,-9587.74498559,0.000139,2]
[332479778,1721231439518,-1357.6108,0.000139,2]
[332479779,1721231439527,-336.79586538,0.000139,2]
[332479780,1721231439536,-891.98952448,0.000139,2]
[332479781,1721231439546,-708.52553937,0.00013968,2]
[332479782,1721231439555,-150.50133856,0.00013968,2]
[332479783,1721231439564,-152.72,0.00013978,2]
[332479784,1721231439574,-203.82,0.0001399,2]
[332479785,1721231439583,-203.82,0.0001399,2]
[332479786,1721231439593,-203.82,0.0001399,2]
[332479787,1721231439602,-203.82,0.0001399,2]
[332479788,1721231439611,-203.82,0.0001399,2]
[332479789,1721231439621,-168.38883432,0.00013999,2]
[332479790,1721231439630,-349.89001083,0.00013999,2]
[332479791,1721231439640,-18529.81680805,0.00014,2]
[332479792,1721231439651,-5649.53764994,0.00014,2]
[332479797,1721231440390,-1837.7401,0.00014,2]
[332479798,1721231440497,-21630.53821117,0.00014,2]